[Event "Polish University-ch Open 2024"]
[Site "Lublin"]
[Date "2024.02.23"]
[Round "4.11"]
[White "Walter, Szymon"]
[Black "Chaczynski, Kamil"]
[Result "1-0"]
[ECO "C65"]
[WhiteElo "2305"]
[BlackElo "2118"]
[Annotator "TA"]
[PlyCount "99"]
[EventDate "2024.02.22"]
[EventType "swiss"]
[EventCountry "POL"]
[SourceTitle "playchess.com"]
[Source "ChessBase"]
[SourceQuality "1"]
[TimeControl "600+3"]

{[%evp 9,99,-10,8,0,14,0,57,60,51,58,77,2,5,-26,-28,-19,-33,-27,-23,-13,-7,-41,5,-33,-1,-5,-19,-14,-5,-13,0,-17,4,-12,10,6,18,16,13,9,62,44,76,52,62,41,46,49,327,344,348,352,335,333,582,571,635,634,627,483,538,539,891,466,568,568,562,562,658,669,661,661,662,655,1304,1170,809,783,1353,1302,29970,29972,29972,29974,29974,29975,29973,29975,29972,5081,29974,29975]} 1. e4 {[%emt 0:00:02]} e5 {[%emt 0:00:02]} 2. Nf3 {[%emt 0:00:03]} Nc6 {[%emt 0:00:01]} 3. Bb5 {[%emt 0:00:02]} Nf6 {[%emt 0:00:01]} 4. d4 {[%emt 0:10:08]} exd4 {[%emt 0:01:08]} 5. e5 {[%emt 0:00:00]} Nd5 {[%emt 0:00:17]} 6. O-O {[%emt 0:00:00]} (6. Nxd4 {feels hotter.} Qh4 7. Ne2 a6 8. Qxd5 axb5 9. Nbc3) 6... Be7 {[%emt 0:00:21]} 7. Nxd4 {[%emt 0:00:00]} Nxd4 {[%emt 0:00:49]} ({Better is} 7... a6 $11) 8. Qxd4 $14 {[%emt 0:00:00] White is slightly better.} c6 {[%emt 0:00:02][%cal Oe8g8]} 9. Bc4 {[%emt 0:00:00]} Nc7 {[%emt 0:00:25]} 10. Qg4 {[%emt 0:00:00] White has more active pieces.} ({White should try} 10. Nc3 $16) 10... O-O $1 $11 {[%emt 0:00:39] [#] And now ...d5 would win.} 11. Bd3 {[%emt 0:00:00]} ({But not} 11. Bh6 Ne8 12. Bd3 d6 $17) 11... d6 {[%emt 0:01:23]} (11... d5 {simplifies} 12. Qe2 Ne6 13. Be3 Qc7) 12. Qe4 {[%emt 0:00:00][%csl Gd3][%cal Re4h7]} g6 {[%emt 0:00:03]} 13. exd6 {[%emt 0:00:00]} Bxd6 {[%emt 0:00:11]} 14. Qf3 {[%emt 0:00:00]} Qh4 {[%emt 0:00:52][%csl Gd6][%cal Rh4h2]} 15. g3 {[%emt 0:00:00]} Bg4 {[%emt 0:01:00]} (15... Qh3 $15) 16. Qe3 {[%emt 0:00:00]} (16. Qxc6 {simplifies} bxc6 17. gxh4 Rfe8 18. Nc3) 16... Qh5 {[%emt 0:00:06]} (16... Qh3 {seems wilder.} 17. Nc3 Rfe8 18. Qh6 Be5) 17. Qh6 {[%emt 0:00:00]} Qxh6 {[%emt 0:00:11]} 18. Bxh6 {[%emt 0:00:00]} Rfe8 {[%emt 0:00:04]} 19. Nc3 {[%emt 0:00:00]} Bf3 {[%emt 0:00:38]} 20. Rfe1 {[%emt 0:00:48]} Bb4 {[%emt 0:00:49]} 21. Be3 {[%emt 0:00:00]} f6 {[%emt 0:00:21]} 22. Bd4 {[%emt 0:00:00]} Kg7 {[%emt 0:00:02]} 23. Rxe8 {[%emt 0:00:00]} Rxe8 {[%emt 0:00:09]} 24. Bxa7 {[%emt 0:00:00]} h5 {[%emt 0:00:32]} (24... Bxc3 $11 25. bxc3 Nb5) 25. a3 {[%emt 0:00:00]} Bd6 {[%emt 0:00:13]} 26. Be3 {[%emt 0:00:00]} h4 {[%emt 0:00:05]} 27. Bf1 {[%emt 0:00:00]} hxg3 {[%emt 0:00:04]} 28. hxg3 {[%emt 0:00:00]} Bxg3 $2 {[%emt 0:00:03][%mdl 8192] This costs Black the game.} 29. fxg3 $18 {[%emt 0:00:00]} Rxe3 {[%emt 0:00:01]} 30. Kf2 {[%emt 0:00:00]} Rxc3 {[%emt 0:00:15]} 31. bxc3 {[%emt 0:00:00][%cal Bb2c3,Bc3c4][%mdl 4128] Endgame. KRB-KBN} Bd5 $2 {[%emt 0:00:24]} (31... Bg4 32. Rb1 Bc8) 32. Rb1 {[%emt 0:00:00]} b5 {[%emt 0:00:12] [#]} 33. c4 $1 {[%emt 0:00:00]} Be4 {[%emt 0:00:06]} 34. Bd3 {[%emt 0:00:00]} Bxd3 {[%emt 0:00:08]} 35. cxd3 {[%emt 0:00:00] KR-KN} Kf7 {[%emt 0:00:01]} 36. Ke3 {[%emt 0:00:00]} Ke6 {[%emt 0:00:01]} 37. Kd4 {[%emt 0:00:00]} Kd6 {[%emt 0:00:03]} 38. Kc3 {[%emt 0:00:00]} f5 {[%emt 0:00:03]} 39. Rh1 {[%emt 0:00:00]} g5 {[%emt 0:00:04][%cal Bg6g5,Bg5f4,Bf4f3][%mdl 32]} 40. Rf1 {[%emt 0:00:00]} Ke5 {[%emt 0:00:03]} 41. Re1+ {[%emt 0:00:00]} Kf6 {[%emt 0:00:07]} 42. cxb5 {[%emt 0:00:00]} cxb5 {[%emt 0:00:04]} 43. Kd4 {[%emt 0:00:00]} f4 {[%emt 0:00:04]} 44. gxf4 {[%emt 0:00:00]} gxf4 {[%emt 0:00:02]} 45. Ke4 {[%emt 0:00:00]} Ne6 {[%emt 0:00:00]} 46. d4 {[%emt 0:00:00]} f3 {[%emt 0:00:04]} 47. Rf1 {[%emt 0:00:00]} Ng5+ {[%emt 0:00:01]} 48. Ke3 {[%emt 0:00:00]} Ke6 {[%emt 0:00:01]} 49. Rb1 {[%emt 0:00:00]} (49. Rxf3 $142 Nh7 50. Kd3 Ng5 51. Re3+ Kd6 52. Re5 Nh7 53. Rxb5 Nf8 54. a4) 49... Kd6 {[%emt 0:00:15]} 50. Rxb5 {[%emt 0:00:09] Weighted Error Value: White=0.25 (precise) /Black=0.56.  Loses game:     	---       	Black=1      Mistake:       	White=1     	Black=4      Inaccurate:     	White=4     	Black=3      OK:         	White=11    	Black=7      Best:        	White=1     	Black=1      Strong:       	---       	Black=1} 1-0

[Event "Polish University-ch Open 2024"]
[Site "Lublin"]
[Date "2024.02.23"]
[Round "4.12"]
[White "Suder, Jakub"]
[Black "Babiarz, Arkadiusz"]
[Result "1-0"]
[ECO "D31"]
[WhiteElo "2333"]
[BlackElo "2159"]
[Annotator "TA"]
[PlyCount "100"]
[EventDate "2024.02.22"]
[EventType "swiss"]
[EventCountry "POL"]
[SourceTitle "playchess.com"]
[Source "ChessBase"]
[SourceQuality "1"]
[TimeControl "600+3"]

{[%evp 13,100,8,22,0,8,11,9,11,9,0,8,10,18,12,20,16,23,15,14,3,9,14,15,8,3,2,16,18,22,0,34,10,5,-24,-22,-14,-8,-16,0,-22,77,4,105,78,173,66,156,22,202,160,270,171,170,160,193,180,168,176,144,121,240,222,361,347,464,462,772,714,769,710,937,930,893,893,833,812,5724,4133,29971,29972,29970,29972,29984,29985,29985,29986,29986,29987,29991]} 1. d4 {[%emt 0:00:02]} d5 {[%emt 0:00:00]} 2. c4 {[%emt 0:00:01]} e6 {[%emt 0:00:01]} 3. Nc3 {[%emt 0:00:00]} c6 {[%emt 0:00:01]} 4. cxd5 {[%emt 0:00:15]} exd5 {[%emt 0:00:02]} 5. Bf4 {[%emt 0:00:02]} Bd6 {[%emt 0:00:34]} 6. Bxd6 {[%emt 0:00:02]} Qxd6 {[%emt 0:00:02]} 7. e3 {[%emt 0:00:02]} Bf5 {[%emt 0:00:42]} 8. Qb3 {[%emt 0:00:08] D31: Damengambit (Halbslawisch).} b6 {[%emt 0:00:36]} 9. Rc1 $146 {[%emt 0:00:08]} ({Predecessor:} 9. Nge2 Nd7 10. Qa3 Qxa3 11. bxa3 Ne7 12. f3 O-O 13. Kd2 Rfd8 14. g4 Be6 15. Nf4 {1-0 Yeletsky,I (2504)-Hartikainen,J (2089) Titled Tuesday intern op 13th Feb Late blitz 2024 (4)}) 9... Nd7 {[%emt 0:00:10]} 10. Nge2 {[%emt 0:00:21]} Ne7 {[%emt 0:00:17]} 11. Ng3 {[%emt 0:00:04]} Bg6 {[%emt 0:00:11]} 12. Be2 {[%emt 0:00:01]} O-O {[%emt 0:00:11]} 13. O-O {[%emt 0:00:19]} Rfc8 {[%emt 0:00:44]} 14. Bg4 {[%emt 0:00:21]} Rc7 {[%emt 0:00:20]} 15. Nce2 {[%emt 0:00:34]} Nf6 {[%emt 0:00:06]} 16. Bf3 {[%emt 0:00:11]} h6 {[%emt 0:00:26]} 17. Nf4 {[%emt 0:00:16]} Bh7 {[%emt 0:00:01]} 18. Nd3 {[%emt 0:00:02]} Rac8 {[%emt 0:00:24]} 19. Rfd1 {[%emt 0:00:02]} c5 {[%emt 0:01:43]} 20. dxc5 {[%emt 0:00:11]} bxc5 {[%emt 0:00:01]} 21. Qa3 {[%emt 0:00:17]} Qb6 {[%emt 0:00:04]} 22. Nf4 {[%emt 0:00:13]} d4 {[%emt 0:00:27]} 23. e4 {[%emt 0:01:00]} g5 {[%emt 0:01:49]} 24. Nfh5 $1 {[%emt 0:00:31]} Nxh5 {[%emt 0:00:02]} 25. Nxh5 {[%emt 0:00:10]} c4 {[%emt 0:00:04]} 26. e5 {[%emt 0:00:20]} Bd3 {[%emt 0:00:05]} (26... Bg6 $11 {bleibt in der Remisbreite.}) 27. Bg4 {[%emt 0:00:16]} ({Vorzuziehen ist} 27. Qd6 $16) 27... Rb8 {[%emt 0:00:36]} (27... Rd8 $11 {hält das Gleichgewicht.}) 28. Nf6+ {[%emt 0:00:02]} Kh8 {[%emt 0:00:01] [#]} (28... Kg7 $16) 29. b3 {[%emt 0:00:55]} (29. Nd7 $6 Rxd7 30. Bxd7 Ng6 $16) ({Besser ist} 29. h4 $1 $18 {[%cal Rh4g5][%mdl 512]}) 29... Ng6 {[%emt 0:00:01] [#]} (29... cxb3 $1 $14 30. axb3 (30. Rxd3 Rxc1+ 31. Qxc1 bxa2 $19) (30. Rxc7 Qxc7 31. Nd7 Be2 $11) (30. Nd7 Rxd7 31. Rxd3 b2 $15) 30... Bf5) 30. bxc4 {[%emt 0:00:42]} (30. e6 $1 $16 {Und bxc4 würde nun gewinnen.} c3 (30... fxe6 $2 31. bxc4 Rf8 32. Rxd3 $18) 31. Rxd3 fxe6 32. g3) 30... Bxc4 $2 {[%emt 0:00:07]} (30... Nxe5 $11 {und Schwarz muss sich keine Sorgen machen.} 31. Nd7 Rxd7 32. Bxd7 Bxc4) 31. Nd7 {[%emt 0:00:34]} Qb4 {[%emt 0:00:25]} (31... Rxd7 $16 32. Bxd7 Nxe5) 32. Qh3 {[%emt 0:00:04]} Kg7 {[%emt 0:00:33] Und jetzt ...Nf4 wäre schön.} 33. a3 {[%emt 0:00:12]} (33. Rxd4 $2 Be2 34. Rcd1 (34. Rxc7 $2 Qe1#) 34... Rxd7 35. Bxe2 (35. Bxd7 $2 Qxd4 36. Rc1 Rd8 $19) 35... Rxd4 $19) 33... Qb2 {[%emt 0:00:13]} 34. Nxb8 {[%emt 0:00:27]} Nf4 {[%emt 0:00:01]} 35. Qg3 {[%emt 0:00:02]} Qxb8 {[%emt 0:00:22]} 36. h4 {[%emt 0:00:12]} (36. Rxd4 Be2 37. Rdd1 Bxd1 38. Rxd1 Rc5 $14) 36... Be2 {[%emt 0:00:05]} (36... Qd8 $16 {ist wohl besser.} 37. a4 d3) 37. Rxc7 $18 {[%emt 0:00:35]} Qxc7 {[%emt 0:00:01]} (37... Bxd1 {kämpft weiter.} 38. Rc5 Bxg4 39. Qxg4 Qb6) 38. Rxd4 $18 {[%emt 0:00:19] Droht stark hxg5.} Qxe5 {[%emt 0:00:07]} 39. Qe3 {[%emt 0:00:36]} Qxe3 {[%emt 0:00:19]} (39... Qf6 $142 40. Rxf4 (40. Bxe2 Nxe2+ 41. Qxe2 Qxd4 $11) 40... Qa1+ 41. Kh2 gxf4 42. Qxe2 Qxa3 43. Qe5+ Kg8) 40. fxe3 $18 {[%emt 0:00:01]} Bxg4 {[%emt 0:00:03]} 41. exf4 {[%emt 0:00:01]} gxh4 {[%emt 0:00:03]} 42. Ra4 {[%emt 0:00:05]} Kf6 {[%emt 0:00:03]} 43. Rxa7 {[%emt 0:00:05]} h3 {[%emt 0:00:03]} 44. Ra6+ {[%emt 0:00:05]} Kf5 {[%emt 0:00:01]} 45. gxh3 {[%emt 0:00:16]} Bxh3 {[%emt 0:00:02]} 46. Rxh6 {[%emt 0:00:04]} Bg4 {[%emt 0:00:02]} 47. a4 {[%emt 0:00:04]} Kxf4 {[%emt 0:00:01]} 48. Rh4 {[%emt 0:00:07]} f5 {[%emt 0:00:02]} 49. a5 {[%emt 0:00:02]} Ke5 {[%emt 0:00:01] [#]} 50. Rxg4 $1 {[%emt 0:00:10][%mdl 512]} Kd5 {[%emt 0:00:18]} (50... fxg4 51. a6) 1-0

[Event "Polish University-ch Open 2024"]
[Site "Lublin"]
[Date "2024.02.23"]
[Round "4.13"]
[White "Kaminski, Maciej"]
[Black "Lukasiewicz, Krzysztof"]
[Result "0-1"]
[ECO "B10"]
[WhiteElo "1869"]
[BlackElo "2290"]
[Annotator "TA"]
[PlyCount "104"]
[EventDate "2024.02.22"]
[EventType "swiss"]
[EventCountry "POL"]
[SourceTitle "playchess.com"]
[Source "ChessBase"]
[SourceQuality "1"]
[TimeControl "600+3"]

{[%evp 9,104,-13,-3,-10,12,-2,14,-14,-21,-28,-27,-33,-33,-26,-28,-25,-21,-34,-22,-31,-12,-13,-14,-27,-2,-28,-20,-47,-39,-39,-44,-51,-44,-50,-43,-47,-49,-106,-81,-85,-62,-86,-26,-49,-46,-44,-22,-26,0,0,-1,0,0,-16,-15,-60,0,0,0,0,111,104,48,46,165,20,313,-8,-8,-8,-8,-8,-8,-8,-8,-644,-647,-1129,-870,-1066,-1108,-1488,-1457,-1675,-1679,-1449,-1413,-29978,-1677,-1927,-1736,-29976,-29977,-29990,-29991,-29991,-29992]} 1. e4 {[%emt 0:00:02]} c6 {[%emt 0:00:00]} 2. Nf3 {[%emt 0:00:03]} d5 {[%emt 0:00:02]} 3. d3 {[%emt 0:00:01]} dxe4 {[%emt 0:00:06]} 4. dxe4 {[%emt 0:00:04]} Qxd1+ {[%emt 0:00:02]} 5. Kxd1 {[%emt 0:00:02]} Nf6 {[%emt 0:00:01]} 6. Nbd2 {[%emt 0:00:09]} Bg4 {[%emt 0:01:26]} 7. Bd3 {[%emt 0:00:09]} Nbd7 {[%emt 0:00:22][%cal Bb8d7,Bd7c5,Bc5d3][%mdl 32]} 8. h3 {[%emt 0:00:21] Die Stellung ist ausgeglichen.} Bxf3+ {[%emt 0:00:01]} 9. Nxf3 {[%emt 0:00:03]} Nc5 {[%emt 0:00:05]} 10. e5 {[%emt 0:00:37]} Nxd3 {[%emt 0:00:39]} 11. cxd3 {[%emt 0:00:07]} Nd5 {[%emt 0:00:02]} 12. Ke2 {[%emt 0:00:15]} e6 {[%emt 0:00:01]} 13. Be3 {[%emt 0:01:00]} Be7 {[%emt 0:00:05]} 14. a3 {[%emt 0:00:05]} O-O {[%emt 0:00:11]} 15. Rac1 {[%emt 0:00:08]} Rfd8 {[%emt 0:00:05]} 16. g3 {[%emt 0:00:31]} h6 {[%emt 0:00:02]} 17. Bc5 {[%emt 0:00:12]} Rd7 {[%emt 0:00:15]} 18. Bxe7 {[%emt 0:01:16]} Nxe7 {[%emt 0:00:01]} 19. Rhd1 {[%emt 0:00:39]} Rad8 {[%emt 0:00:02]} 20. d4 {[%emt 0:01:03]} Nf5 {[%emt 0:00:18]} 21. Rc4 {[%emt 0:00:04]} Rd5 {[%emt 0:00:03]} 22. g4 {[%emt 0:00:07]} Ne7 {[%emt 0:00:01][%cal Bf5e7,Be7g6,Bg6f4,Bf4h3][%mdl 32]} 23. Ne1 {[%emt 0:00:51]} (23. Rc5 $15) 23... Kf8 {[%emt 0:00:30]} 24. Nc2 {[%emt 0:00:06]} Ng6 {[%emt 0:00:08][%cal Og6e5]} 25. Ne3 {[%emt 0:00:38] [#]} Rb5 {[%emt 0:00:39]} (25... R5d7 $1 $17) 26. Rb4 {[%emt 0:00:45]} Rxb4 {[%emt 0:00:14]} 27. axb4 $15 {[%emt 0:00:02][%mdl 4096] Endspiel. KRN-KRN} Nf4+ {[%emt 0:00:01]} 28. Kf3 {[%emt 0:00:02]} Nxh3 {[%emt 0:00:02]} 29. Kg3 $1 {[%emt 0:00:02]} Ng5 {[%emt 0:00:08]} 30. f4 {[%emt 0:00:04] Es drohte f6} Nh7 {[%emt 0:00:04]} 31. Nc4 {[%emt 0:00:13]} Rd7 {[%emt 0:00:27]} 32. Nd6 {[%emt 0:00:09]} a6 {[%emt 0:00:10]} (32... Nf6 $1 $15) 33. b5 $11 {[%emt 0:00:15]} axb5 {[%emt 0:02:52][%cal Oh7f6]} 34. Ra1 {[%emt 0:00:03] [#] Ra8+ ist eine echte Drohung.} Kg8 {[%emt 0:00:52]} (34... Ke7 $11 {hält das Gleichgewicht.}) 35. Ra8+ $16 {[%emt 0:00:51][%mdl 1024] Weiss hat starke Kompensation.} Nf8 {[%emt 0:00:01]} 36. b4 {[%emt 0:00:02]} f6 {[%emt 0:00:28]} ({Günstiger ist} 36... b6 $1 $14) 37. Rb8 {[%emt 0:00:14]} (37. f5 $6 fxe5 38. dxe5 (38. fxe6 Re7 $11) 38... Re7 $16) ({Vorzuziehen ist} 37. Re8 $18 {Droht f5 und aus.} fxe5 38. dxe5) 37... g5 $2 {[%emt 0:00:31][%mdl 8192]} (37... fxe5 $11 38. dxe5 b6) 38. Ne8 $2 {[%emt 0:00:25]} (38. Nxb7 gxf4+ (38... Rxd4 39. Nc5 $11) 39. Kf3 fxe5 $11 (39... Rxd4 40. Nc5 $11)) (38. f5 $18 {Re8 wäre nun fies.} fxe5 (38... exf5 $2 39. gxf5 fxe5 40. dxe5 $18) 39. dxe5 (39. fxe6 Re7 $15)) 38... gxf4+ $11 {[%emt 0:00:01]} (38... Rxd4 $2 39. Nxf6+ (39. exf6 $2 gxf4+ 40. Kf2 Kf7 $19) 39... Kf7 40. f5 $18) 39. Kf3 $1 {[%emt 0:00:10]} Rxd4 {[%emt 0:00:11]} 40. Nxf6+ {[%emt 0:00:02]} Kf7 {[%emt 0:00:01] Weiss muss nun ...Ng6 beachten.} 41. Rxb7+ {[%emt 0:00:02]} Kg6 {[%emt 0:00:11]} 42. Ne8 $2 {[%emt 0:00:05][%mdl 8192]} (42. Nh5 $11 Rd7 (42... Rxb4 43. Rg7#) 43. Nxf4+ Kf7 44. Rb6) 42... Nd7 $1 $19 {[%emt 0:00:16]} (42... Rxb4 43. Rg7#) 43. Rc7 {[%emt 0:00:08]} Nxe5+ {[%emt 0:00:09]} 44. Kf2 {[%emt 0:00:01]} Kg5 {[%emt 0:00:06][%cal Of4f3] Zielt auf ...f3! ab.} ({Schwächer ist} 44... Rxb4 45. Rg7#) 45. Rg7+ {[%emt 0:00:03]} Kh4 {[%emt 0:00:01]} 46. Nf6 {[%emt 0:00:02]} Rd2+ {[%emt 0:00:07]} 47. Ke1 {[%emt 0:00:02]} Rb2 {[%emt 0:00:10][%cal Of4f3]} 48. Rh7 {[%emt 0:00:04]} Kg3 {[%emt 0:00:10]} (48... f3 $142 49. Ne4 Re2+ (49... Kxg4 $2 50. Nd2 $19) (49... Nxg4 $2 50. Kd1 $19) (49... Rxb4 $2 50. Rxh6+ Kxg4 51. Nc3 $19) 50. Kd1 Rxe4 51. Rxh6+ Kxg4 52. Rf6 Rf4 (52... Rxb4 $2 53. Kc2 $19) 53. Rh6 f2 (53... Rxb4 54. Kd2 $19) 54. Rh1 f1=Q+ (54... f1=R+ {wird mattgesetzt.} 55. Rxf1 Rxf1+ 56. Ke2 Rf4 57. Ke3 Rxb4 58. Kd2 Rc4 59. Ke3 b4 60. Ke2 Rc2+ 61. Ke1 Kf3 62. Kd1 b3 63. Ke1 b2 64. Kf1 b1=Q#) 55. Rxf1 Rxf1+ 56. Ke2 Rc1 57. Ke3 Rc4 58. Ke2 Kf4 (58... Rxb4 {ist ein Selbstmatt.} 59. Kd2 Rc4 60. Ke3 b4 61. Ke2 b3 62. Ke3 b2 63. Kd2 b1=Q 64. Ke2 Qc1 65. Kf2 Rc2#) 59. Kf2 Rc2+ (59... Rxb4 60. Ke2 Rb2+ 61. Ke1 Ke3 62. Kd1 c5 63. Kc1 Nd3+ 64. Kd1 Rd2#) 60. Ke1 Ke3 61. Kf1 Rf2+ 62. Kg1 Nf3+ 63. Kh1 Rh2#) 49. Ne4+ {[%emt 0:00:02]} Kg2 {[%emt 0:00:03] ( -> ...f3)} 50. Rxh6 {[%emt 0:00:04]} f3 {[%emt 0:00:02] Schwarz setzt Matt.} 51. Rxe6 {[%emt 0:00:02]} Re2+ {[%emt 0:00:03]} 52. Kd1 {[%emt 0:00:03]} Rxe4 {[%emt 0:00:01] Gewichteter Fehlerwert: Weiß=0.81/Schwarz=0.29 (präzise) .  Verlustzug:     	Weiß=1     	Schwarz=1     Gewinn verpasst:   	Weiß=1     	---        Fehler:       	Weiß=2     	Schwarz=4     Ungenau:       	Weiß=5     	---        OK:         	Weiß=8     	Schwarz=16    Bester:       	Weiß=5     	Schwarz=2     Stark:        	Weiß=2     	Schwarz=1} 0-1

[Event "Polish University-ch Open 2024"]
[Site "Lublin"]
[Date "2024.02.23"]
[Round "4.14"]
[White "Posluszny, Tomasz"]
[Black "Niedbala, Bartlomiej"]
[Result "0-1"]
[ECO "D37"]
[WhiteElo "2001"]
[BlackElo "2382"]
[Annotator "TA"]
[PlyCount "101"]
[EventDate "2024.02.22"]
[EventType "swiss"]
[EventCountry "POL"]
[SourceTitle "playchess.com"]
[Source "ChessBase"]
[SourceQuality "1"]
[TimeControl "600+3"]

{[%evp 9,101,15,22,18,45,0,3,0,3,11,15,11,12,2,16,14,14,21,17,14,8,-70,10,8,34,24,56,43,42,24,33,32,47,52,53,24,46,39,36,31,36,26,52,34,54,28,33,26,70,37,63,31,58,27,38,29,34,38,53,67,60,62,150,152,116,155,136,141,172,103,186,181,293,298,299,209,305,31,31,31,26,0,0,0,0,0,0,0,0,0,7093,29967,29967,-449]} 1. Nf3 {[%emt 0:00:02]} d5 {[%emt 0:00:16]} 2. d4 {[%emt 0:00:03]} Nf6 {[%emt 0:00:05]} 3. c4 {[%emt 0:00:01]} e6 {[%emt 0:00:02]} 4. Nc3 {[%emt 0:00:04]} Ne4 {[%emt 0:00:24]} 5. Qd3 {[%emt 0:01:22]} Nxc3 {[%emt 0:00:15]} 6. Qxc3 {[%emt 0:00:20]} a5 {[%emt 0:00:04] [#] Droht ...Bb4 und aus.} 7. Qc2 {[%emt 0:00:26]} Bb4+ {[%emt 0:00:29]} 8. Bd2 {[%emt 0:00:01] Die Stellung ist ausgeglichen.} Bxd2+ {[%emt 0:01:06]} 9. Nxd2 {[%emt 0:00:07]} dxc4 {[%emt 0:00:10]} 10. Qxc4 {[%emt 0:00:15]} O-O {[%emt 0:00:29]} 11. e3 {[%emt 0:00:06]} b6 {[%emt 0:00:32]} 12. Qc2 {[%emt 0:00:10]} Bb7 {[%emt 0:00:06]} 13. Bd3 {[%emt 0:00:08]} h6 {[%emt 0:00:15]} 14. O-O {[%emt 0:00:14]} Na6 {[%emt 0:00:09]} 15. Bh7+ {[%emt 0:01:04]} Kh8 {[%emt 0:00:02]} 16. Be4 {[%emt 0:00:02]} Nb4 {[%emt 0:00:31]} 17. Qb3 {[%emt 0:00:34]} Nd5 {[%emt 0:00:08]} 18. Rfc1 {[%emt 0:01:12]} Qe7 {[%emt 0:01:03]} 19. Bf3 {[%emt 0:00:56]} Rfd8 {[%emt 0:00:27]} 20. Nc4 {[%emt 0:00:26]} f6 {[%emt 0:00:11]} 21. a3 {[%emt 0:00:24]} Rab8 {[%emt 0:00:22]} 22. Rc2 {[%emt 0:00:18]} Ba6 {[%emt 0:00:34]} 23. e4 {[%emt 0:00:33]} Nf4 {[%emt 0:03:32][%cal Bd5f4,Bf4g6,Bg6f8,Bf8h7,Bh7g5][%mdl 32]} 24. Qe3 {[%emt 0:00:01]} Ng6 {[%emt 0:00:00]} 25. Bh5 {[%emt 0:00:16]} Nf8 {[%emt 0:00:00]} 26. Rd1 {[%emt 0:00:10]} Rd7 {[%emt 0:00:00]} 27. Be2 {[%emt 0:00:20]} Rbd8 {[%emt 0:00:00]} 28. Rcd2 {[%emt 0:00:16]} Bb7 {[%emt 0:00:00]} 29. h3 {[%emt 0:00:05]} Nh7 {[%emt 0:00:00]} 30. f3 {[%emt 0:00:21]} Qf7 {[%emt 0:00:00]} 31. Qc3 {[%emt 0:00:18]} Qg6 {[%emt 0:00:00]} 32. Kh2 {[%emt 0:00:01]} Ng5 {[%emt 0:00:00]} 33. Qe3 {[%emt 0:00:20]} Nh7 {[%emt 0:00:00]} 34. b4 {[%emt 0:00:02]} axb4 {[%emt 0:00:00]} 35. axb4 {[%emt 0:00:01]} Ra8 {[%emt 0:00:00] [#]} (35... Qe8 $14) 36. d5 $1 $16 {[%emt 0:00:13]} exd5 {[%emt 0:00:00]} 37. exd5 {[%emt 0:00:01]} Re8 {[%emt 0:00:00] Wehrt d6 ab} 38. Qf2 {[%emt 0:00:15]} Ba6 {[%emt 0:00:08]} 39. d6 {[%emt 0:00:12]} ({Vorzuziehen ist} 39. b5 $18 Rxe2 (39... Bxb5 $2 40. Bd3 $18) 40. Qxe2 (40. Rxe2 Bxb5 41. Qe1 Nf8 $18) 40... Bxb5 41. d6) 39... Bxc4 {[%emt 0:00:18]} (39... Qf7 $16 40. Rd4 Qf8) 40. Bxc4 $18 {[%emt 0:00:01] Droht stark Bb5.} Rxd6 {[%emt 0:00:04]} (40... Rf8 $142 41. Bb5 Rxd6 42. Rxd6 cxd6 43. Qxb6 Qf5) 41. Rxd6 {[%emt 0:00:01]} cxd6 {[%emt 0:00:01]} 42. Rxd6 {[%emt 0:00:11]} Qb1 {[%emt 0:00:17]} (42... Ng5 $142 43. Bd3 (43. Rxb6 Rc8 $18) (43. Qxb6 Nxf3+ 44. gxf3 Qc2+ 45. Kg3 Qxc4 $11) 43... Qf7 44. Qxb6 (44. Rxb6 Rd8 $14) 44... Qe7) 43. Bf7 $2 {[%emt 0:00:09]} (43. Rxb6 $18 {Qg3 ist eine echte Drohung.} Qf5 44. Qg3) 43... Rf8 $14 {[%emt 0:00:05]} 44. Bd5 {[%emt 0:00:06]} Qxb4 {[%emt 0:00:04]} 45. Qxb6 {[%emt 0:00:03]} Qf4+ {[%emt 0:00:01]} 46. Kg1 {[%emt 0:00:03]} Ng5 {[%emt 0:00:05]} 47. Rd8 $36 {[%emt 0:00:05][%mdl 2048] Weiss hat gut koordiniertes Spiel.} Qc1+ {[%emt 0:00:04]} 48. Kh2 {[%emt 0:00:01]} Qf4+ {[%emt 0:00:02]} 49. Kg1 {[%emt 0:00:00]} Rxd8 {[%emt 0:00:02][%mdl 8192]} (49... Qc1+ $11 50. Kh2 Qf4+ 51. Kg1) 50. Qxd8+ $18 {[%emt 0:00:01]} Kh7 {[%emt 0:00:00]} 51. Qe7 $4 {[%emt 0:00:15][%mdl 8192] Gewichteter Fehlerwert: Weiß=0.22 (präzise) /Schwarz=0.19 (sehr präzise) .  Verlustzug:     	---       	Schwarz=1     Gewinn verpasst:   	Weiß=1     	---        Fehler:       	Weiß=1     	Schwarz=4     Ungenau:       	Weiß=8     	Schwarz=8     OK:         	Weiß=16    	Schwarz=17    Bester:       	Weiß=1     	Schwarz=2     Stark:        	Weiß=1     	---} (51. Bg8+ Kg6 52. Qe8+ Nf7 53. Qxf7+ (53. Bxf7+ Kg5 $18) 53... Kg5 54. Qxg7+ Kh4 55. Qg6 h5 56. Bf7) 0-1